Cogmind - Beta 16.1 @@@ ROGUE MODE // 2026.03.01 @ 02:17:41 Player: phosphophyllite Result: Destroyed by Y-54 Guardian with Gatling Laser Performance ------------- Evolutions (4) 2000 Regions Visited (6) 1200 Robots Destroyed (22) 110 Value Destroyed (543) 543 Prototype IDs (0) 0 Alien Tech Used (0) 0 Bonus (0) 0 TOTAL SCORE: 3853 Bonus ------- None Cogmind --------- Core Integrity 0/850 Matter 48/300 Energy 99/100 System Corruption 8% Temperature Cool (12) Movement Core (50) Location -6/Factory Parts ------- > --- POWER (2) -------- (None) > --- PROPULSION (6) --- (None) > --- UTILITY (4) ------ (None) > --- WEAPON (3) ------- (None) > --- INVENTORY (5) ---- Cooling System Weight Redist. System Seismic Detector High-powered Shock Rifle EMP Blaster Peak State ------------ > --- POWER ------------ Ion Engine Light Nuclear Core > --- PROPULSION ------- Flight Unit Flight Unit Flight Unit Flight Unit Flight Unit > --- UTILITY ---------- Cooling System Small Storage Unit Weight Redist. System > --- WEAPON ----------- Light EM Pulse Cannon Mini Grenade Launcher Mini Grenade Launcher > --- INVENTORY -------- Flight Unit Seismic Detector Light EM Pulse Cannon Light EM Pulse Cannon EMP Blaster EMP Blaster [Rating: 21] Favorites ----------- Power Ion Engine Engine Ion Engine Power Core Light Nuclear Core Propulsion Flight Unit Treads Light Treads Leg Aluminum Leg Flight Unit Flight Unit Utility Cooling System Device Cooling System Storage Small Storage Unit Weapon Light EM Pulse Cannon Energy Gun EM Pulse Gun Energy Cannon Light EM Pulse Cannon Launcher Mini Grenade Launcher Build | -11 -10 -9 -8 -7 -7 -6 ------- Run | Yrd Mat Mat Mat Fac Sto Fac Slots Evolved 8 | . . 2 2 2 . 2 Power 1 | . . . . 1 . . Propulsion 4 | . . 2 1 . . 1 Utility 2 | . . . 1 . . 1 Weapon 1 | . . . . 1 . . Parts Attached 24 | 7 7 7 3 . . . Power 2 | 1 . 1 . . . . Engine 1 | 1 . . . . . . Core 1 | . . 1 . . . . Reactor . | . . . . . . . Propulsion 10 | 2 2 5 1 . . . Treads 2 | . 2 . . . . . Leg 2 | 2 . . . . . . Wheel . | . . . . . . . Hover . | . . . . . . . Flight 6 | . . 5 1 . . . Utility 4 | 1 3 . . . . . Device 2 | . 2 . . . . . Storage 2 | 1 1 . . . . . Processor . | . . . . . . . Hackware . | . . . . . . . Protection . | . . . . . . . Artifact . | . . . . . . . Weapon 8 | 3 2 1 2 . . . Energy Gun 3 | 3 . . . . . . Energy Cannon 2 | . 2 . . . . . Ballistic Gun . | . . . . . . . Ballistic Cannon . | . . . . . . . Launcher 3 | . . 1 2 . . . Special Weapon . | . . . . . . . Impact Weapon . | . . . . . . . Slashing Weapon . | . . . . . . . Piercing Weapon . | . . . . . . . Special Melee Weapon . | . . . . . . . Unidentified Prototypes . | . . . . . . . Corrupted Parts 2 | . . 2 . . . . System Corruption 4 | . . 4 . . . . Parts Lost 9 | . . . . . 5 4 Power 2 | . . . . . 1 1 Propulsion 6 | . . . . . 3 3 Utility . | . . . . . . . Weapon 1 | . . . . . 1 . Highest Loss Streak 4 | . . . . . 3 4 To Critical Strikes . | . . . . . . . Average Backups 8 | 3 12 8 6 5 6 5 Power . | . 1 1 1 . . . Propulsion 2 | 1 5 3 1 1 . . Utility 2 | . 4 1 . . 1 2 Weapon 2 | . 1 2 4 4 4 3 Tool/Special . | . . . . . . . Unused Backups 10 | . 3 2 . . . 5 Power 1 | . 1 . . . . . Propulsion . | . . . . . . . Utility 5 | . 2 2 . . . 1 Weapon 4 | . . . . . . 4 Tool/Special . | . . . . . . . Average Slot Usage (%) 86 | . 98 98 99 98 82 20 Engine 6 | . 14 1 . 7 4 3 Core 4 | . . 10 9 7 7 . Treads 9 | . 24 1 . . . . Leg 1 | . 3 . . . . . Flight 20 | . . 42 45 38 30 9 Device 12 | . 12 11 17 15 15 1 Storage 10 | . 14 11 9 7 7 2 Energy Cannon 15 | . 26 19 8 7 4 . Launcher 4 | . . 2 9 13 10 3 Peak Build Rating 21 | 6 12 15 18 21 21 12 Average Rating 12 | 4 10 14 17 20 17 4 On Entrance 11 | . 6 12 15 18 21 11 Avg Prop Armor Cover (%) . | . . . . . . . Naked Turns 77 | . . . . . . 77 Heaviest Build 35 | 14 35 18 20 23 23 11 Greatest Support 46 | 20 46 22 26 26 26 18 Greatest Overweight (x) 1 | . . . . . . 1 Average Overweight (x) . | . . . . . . . Largest Inventory Capacity 15 | 8 15 15 8 8 8 8 Average Capacity 10 | 6 14 8 8 8 8 5 Most Carried 15 | 4 15 14 8 6 7 8 Average Carried 8 | 3 12 8 6 5 6 5 Final Capacity 15 | 8 15 8 8 8 8 5 Final Carried 15 | 4 15 8 7 6 7 5 Class Distribution -------------------- 55% | Mutant 39% | Scavenger-Sprinter 3% | Scavenger-Mutant Dominant Class ---------------- Mutant | -10/Materials Scavenger-Sprinter | -9/Materials Scavenger-Sprinter | -8/Materials Scavenger-Sprinter | -7/Factory Scavenger-Sprinter | -7/Storage Mutant | -6/Factory Resources | -11 -10 -9 -8 -7 -7 -6 ----------- Run | Yrd Mat Mat Mat Fac Sto Fac Matter Collected 454 | 233 117 104 . . . . Remotely . | . . . . . . . Salvage Created 641 | . 325 199 117 . . . Parts 40 | . 24 12 4 . . . Haulers Intercepted 1 | . 1 . . . . . Recyclers Shooed . | . . . . . . . Parts Field Recycled . | . . . . . . . Retrieved Matter . | . . . . . . . Parts Self-Destructed . | . . . . . . . Prevented . | . . . . . . . Parts Restored . | . . . . . . . Kills | -11 -10 -9 -8 -7 -7 -6 ------- Run | Yrd Mat Mat Mat Fac Sto Fac Combat Hostiles Destroyed 14 | . 8 2 3 . 1 . Cannons 10 | . 8 1 . . 1 . AOE 3 | . . . 3 . . . Classes Destroyed 7 | . 4 1 1 . 1 . Builder 1 | . . 1 . . . . Hauler 1 | . 1 . . . . . Recycler 1 | . . . 1 . . . Watcher 5 | . 2 3 . . . . Swarmer 6 | . 6 . . . . . Grunt 7 | . 2 2 3 . . . Sentry 1 | . . . . . 1 . Best Kill Streak 4 | . 3 2 4 . 1 . Combat Bots Only 3 | . 3 1 3 . 1 . Max Kills in Single Turn 2 | . 1 2 1 . 1 . Gunslinging . | . . . . . . . Exploded 1 | . . . 1 . . . Melee . | . . . . . . . Uniques/NPCs Destroyed . | . . . . . . . Combat | -11 -10 -9 -8 -7 -7 -6 -------- Run | Yrd Mat Mat Mat Fac Sto Fac Hostile Shots Fired 290 | . 18 5 11 . 66 190 Missed 148 | . 6 3 5 . 42 92 Hits 142 | . 12 2 6 . 24 98 Projectile 142 | . 12 2 6 . 24 98 Critical Strikes 1 | . . . . . . 1 Damage Taken 1562 | . 116 42 97 . 309 998 Core 1026 | . . 14 48 . 112 852 Absorbed by Shields . | . . . . . . . Core Remaining (%) 94 | 100 100 96 91 . 84 . Volleys Fired 33 | . 15 7 5 . 6 . Largest 2 | . 2 2 2 . 2 . Hottest 112 | . 112 112 60 . 86 . Shots Fired 68 | . 30 16 10 . 12 . Gun . | . . . . . . . Cannon 47 | . 30 15 . . 2 . Launcher 21 | . . 1 10 . 10 . Special . | . . . . . . . Kinetic . | . . . . . . . Thermal . | . . . . . . . Explosive 20 | . . . 10 . 10 . Electromagnetic 48 | . 30 16 . . 2 . Robot Hit Streak 10 | . 4 8 4 . 10 . Robot Miss Streak 2 | . 2 1 1 . 1 . Penetration Max . | . . . . . . . Secondary Targets . | . . . . . . . Shots Hit Robots 43 | . 17 11 5 . 10 . Core Hits 31 | . 11 5 9 . 5 1 Critical Kills . | . . . . . . . Critical Parts Destroyed . | . . . . . . . Critical Strikes . | . . . . . . . Melee Attacks . | . . . . . . . Impact . | . . . . . . . Slashing . | . . . . . . . Piercing . | . . . . . . . Sneak Attacks . | . . . . . . . Combat Hostiles . | . . . . . . . Follow-up Attacks . | . . . . . . . Damage Inflicted 1520 | . 389 336 585 . 184 26 Guns . | . . . . . . . Cannons 648 | . 389 241 . . 18 . Explosions 846 | . . 95 585 . 166 . Melee . | . . . . . . . Ramming 26 | . . . . . . 26 Kinetic . | . . . . . . . Thermal 36 | . . 36 . . . . Explosive 751 | . . . 585 . 166 . Electromagnetic 707 | . 389 300 . . 18 . Impact . | . . . . . . . Slashing . | . . . . . . . Piercing . | . . . . . . . Highest Corruption 8 | . . 4 . . . 8 Average Corruption 3 | . . 3 . . . 2 Corruption Purged . | . . . . . . . Corruption Blocked . | . . . . . . . Effects 7 | . . 5 . . . 2 Message Errors 2 | . . 1 . . . 1 Matter Fused 2 | . . 1 . . . 1 Data Loss (minor) 1 | . . 1 . . . . Misfires 2 | . . 2 . . . . Overload Shots . | . . . . . . . Overflow Damage 10 | . . . 10 . . . Projectiles . | . . . . . . . Explosions 10 | . . . 10 . . . Melee . | . . . . . . . Knockbacks 1 | . . . . . . 1 Impact 1 | . . . . . . 1 Kinetic . | . . . . . . . Secondary . | . . . . . . . Self-Inflicted Damage 32 | . . 21 . . . 11 Shots 2 | . . 2 . . . . Rammed 9 | . . . . . . 9 Targets Rammed 9 | . . . . . . 9 Kicked . | . . . . . . . Crushed . | . . . . . . . Highest Temperature 157 | . 157 144 2 . . 3 Average Temperature 57 | . 85 56 1 . . 2 Received Heat Transfer 438 | . 30 12 45 . 42 309 Siege Activations . | . . . . . . . Martial Activations . | . . . . . . . Shielding Activations . | . . . . . . . Robots Disrupted . | . . . . . . . Combat Hostiles . | . . . . . . . Robots Corrupted 2 | . 1 1 . . . . Combat Hostiles 1 | . . 1 . . . . Parts Fried 4 | . 2 2 . . . . Impact Corruptions . | . . . . . . . Robots Melted . | . . . . . . . Combat Hostiles . | . . . . . . . Parts Melted . | . . . . . . . Heat Transferred 50 | . . 50 . . . . Parts Sabotaged . | . . . . . . . Parts Stolen . | . . . . . . . Parts Stripped . | . . . . . . . Power Chain Reactions 1 | . . 1 . . . . Alert | -11 -10 -9 -8 -7 -7 -6 ------- Run | Yrd Mat Mat Mat Fac Sto Fac Maximum Alert Level . | . . . . . . . Low Security (%) 100 | 100 100 100 100 100 100 100 Level 1 . | . . . . . . . Level 2 . | . . . . . . . Level 3 . | . . . . . . . Level 4 . | . . . . . . . Level 5 . | . . . . . . . High Security . | . . . . . . . Max Security . | . . . . . . . Peak Influence 103 | . 103 69 94 37 72 23 Initial 37 | . . 36 18 37 7 23 Average 25 | . 32 43 12 28 28 2 Influence Increases 609 | . 241 110 104 . 139 15 Destroy 0b10 Robot/C 280 | . 160 40 60 . 20 . Destroy 0b10 Robot/NC 40 | . 15 20 5 . . . Destroy Leader 72 | . 36 16 10 . 10 . Disable Machine 45 | . 30 15 . . . . Destroy Structure 52 | . . 4 29 . 19 . Partial Spotted 45 | . . 15 . . 30 . Lose Combat Pursuer 75 | . . . . . 60 15 Influence Decreases 609 | . 154 151 66 67 104 67 Entered New Map 165 | . . 51 28 47 10 29 Time Decay 374 | . 154 100 38 20 47 15 Lost Part 47 | . . . . . 47 . Purge Threat 23 | . . . . . . 23 Squads Dispatched 4 | . . . . . 2 2 Investigation 1 | . . . . . . 1 Extermination 1 | . . . . . 1 . Reinforcement 2 | . . . . . 1 1 Assault . | . . . . . . . Garrison . | . . . . . . . Intercept . | . . . . . . . Searches Triggered . | . . . . . . . Construction Impeded . | . . . . . . . Haulers Reinforced . | . . . . . . . Active Scanning Responses . | . . . . . . . Cargo Convoy Interrupts . | . . . . . . . Stealth | -11 -10 -9 -8 -7 -7 -6 --------- Run | Yrd Mat Mat Mat Fac Sto Fac Distress Signals 2 | . . . . . 2 . Communications Jammed . | . . . . . . . Distress Signals . | . . . . . . . Times Spotted 37 | . 11 5 4 . 9 8 Peak Tracking Total 8 | . 4 4 4 . 8 4 Tactical Retreats 3 | . . . . . 2 1 Traps | -11 -10 -9 -8 -7 -7 -6 ------- Run | Yrd Mat Mat Mat Fac Sto Fac Traps Triggered 4 | . 1 . . . 1 2 Indirectly . | . . . . . . . Trap Hack Attempts . | . . . . . . . Triggered . | . . . . . . . Disarmed . | . . . . . . . Reprogrammed . | . . . . . . . Reused . | . . . . . . . Traps Extracted . | . . . . . . . Installed . | . . . . . . . Triggered . | . . . . . . . Machines | -11 -10 -9 -8 -7 -7 -6 ---------- Run | Yrd Mat Mat Mat Fac Sto Fac Machines Disabled 3 | . 2 1 . . . . Max in Single Turn 1 | . 1 1 . . . . Machines Repaired . | . . . . . . . Machines Dismantled . | . . . . . . . Machines Sabotaged . | . . . . . . . Overloaded Fab Kills . | . . . . . . . Hacking | -11 -10 -9 -8 -7 -7 -6 --------- Run | Yrd Mat Mat Mat Fac Sto Fac Machines Accessed 3 | . . . . . 1 2 Terminals 3 | . . . . . 1 2 Fabricators . | . . . . . . . Repair Stations . | . . . . . . . Recycling Units . | . . . . . . . Scanalyzers . | . . . . . . . Garrison Access . | . . . . . . . Total Hacks 5 | . . . . . 1 4 Successful 3 | . . . . . 1 2 Failed 2 | . . . . . . 2 Catastrophic 2 | . . . . . . 2 Database Lockouts . | . . . . . . . Manual 4 | . . . . . . 4 Terminals 5 | . . . . . 1 4 Fabricators . | . . . . . . . Repair Stations . | . . . . . . . Recycling Units . | . . . . . . . Scanalyzers . | . . . . . . . Garrison Access . | . . . . . . . Terminal Hacks 3 | . . . . . 1 2 Record 1 | . . . . . . 1 Alert Level 1 | . . . . . 1 . Unreport Threat 1 | . . . . . . 1 Fabricator Hacks . | . . . . . . . Repair Station Hacks . | . . . . . . . Recycling Unit Hacks . | . . . . . . . Scanalyzer . | . . . . . . . Garrison Access Hacks . | . . . . . . . Unauthorized Hacks . | . . . . . . . Terminals . | . . . . . . . Fabricators . | . . . . . . . Repair Stations . | . . . . . . . Recycling Units . | . . . . . . . Scanalyzers . | . . . . . . . Garrison Access . | . . . . . . . Data Cores Recovered . | . . . . . . . Used . | . . . . . . . Hacking Detections 2 | . . . . . . 2 Full Trace Events . | . . . . . . . Feedback Events . | . . . . . . . Feedback Blocked . | . . . . . . . Robot Schematics Acquired . | . . . . . . . Robots Built . | . . . . . . . Authchips . | . . . . . . . Time . | . . . . . . . Total Robot Build Rating . | . . . . . . . Part Schematics Acquired . | . . . . . . . Parts Built . | . . . . . . . Authchips . | . . . . . . . Time . | . . . . . . . Total Part Build Rating . | . . . . . . . Part Studies Acquired . | . . . . . . . Parts Repaired . | . . . . . . . Time . | . . . . . . . Parts Recycled . | . . . . . . . Recycled Matter . | . . . . . . . Retrieved Matter . | . . . . . . . Retrieved Components . | . . . . . . . Parts Scanalyzed . | . . . . . . . Part Schematics Acquired . | . . . . . . . Parts Damaged . | . . . . . . . Bothacking | -11 -10 -9 -8 -7 -7 -6 ------------ Run | Yrd Mat Mat Mat Fac Sto Fac Used RIF Installer . | . . . . . . . Robots Hacked . | . . . . . . . Non-combat . | . . . . . . . Combat . | . . . . . . . Robot Hacks Applied . | . . . . . . . Relay Couplers Released . | . . . . . . . Fabnet Peak Effective % . | . . . . . . . Robots Rewired . | . . . . . . . Allies Hacked . | . . . . . . . Hacks Repelled . | . . . . . . . Allies | -11 -10 -9 -8 -7 -7 -6 -------- Run | Yrd Mat Mat Mat Fac Sto Fac Total Allies . | . . . . . . . Largest Group . | . . . . . . . Highest-Rated Group . | . . . . . . . Highest-Rated Ally . | . . . . . . . Total Orders . | . . . . . . . Ally Attacks . | . . . . . . . Total Damage . | . . . . . . . Kills . | . . . . . . . Allies Corrupted . | . . . . . . . Allies Melted . | . . . . . . . Intel | -11 -10 -9 -8 -7 -7 -6 ------- Run | Yrd Mat Mat Mat Fac Sto Fac Active Infowar (turns) . | . . . . . . . Robot Analysis Total . | . . . . . . . Derelict Logs Recovered . | . . . . . . . Drone Launches . | . . . . . . . Drone Recoveries . | . . . . . . . Exploration | -11 -10 -9 -8 -7 -7 -6 ------------- Run | Yrd Mat Mat Mat Fac Sto Fac Turns Passed 1370 | 66 535 208 224 50 124 163 Spaces Moved 1467 | 44 238 287 106 155 287 350 Core 140 | 1 . . . . . 139 Treads 204 | . 204 . . . . . Legs 77 | 43 34 . . . . . Wheels . | . . . . . . . Hover . | . . . . . . . Flight 1046 | . . 287 106 155 287 211 Fastest Speed 28 | 50 120 31 28 28 28 34 Average Speed 55 | 118 154 31 28 28 31 42 Slowest Speed 160 | 120 160 31 28 28 34 120 Overloaded Moves . | . . . . . . . Propulsion Burnouts . | . . . . . . . Robots Hopped 15 | . . 4 1 . 10 . Potential Cave-ins . | . . . . . . . Cave-ins Triggered . | . . . . . . . Exploration Rate (%) 23 | 3 52 33 18 6 43 6 Regions Visited 6 Branch Regions 1 Pre-discovered Areas . | . . . . . . . Known Exits Taken . | . . . . . . . Unknown Exits Taken 6 | 1 1 1 1 1 1 . Scrap Searched . | . . . . . . . Spaces Dug . | . . . . . . . Terrain Destroyed 65 | . . 3 37 . 25 . Melee . | . . . . . . . Projectile . | . . . . . . . AOE 65 | . . 3 37 . 25 . Terrain Rammed . | . . . . . . . Walls Destroyed . | . . . . . . . Machines Disabled . | . . . . . . . Actions | -11 -10 -9 -8 -7 -7 -6 --------- Run | Yrd Mat Mat Mat Fac Sto Fac Total 1932 | 55 377 387 288 160 299 366 Wait 356 | . 94 77 168 3 14 . Move 1433 | 43 237 278 103 154 268 350 Hop 13 | . . 4 1 . 8 . Pick Up 27 | 4 16 4 1 1 . 1 Fast Attach 11 | 6 3 1 1 . . . Attach 14 | 1 1 4 4 2 1 1 Detach 7 | 1 . . 2 . 2 2 Swap 11 | . 4 5 2 . . . Drop 18 | . 7 7 1 . . 3 Fire 33 | . 15 7 5 . 6 . Melee . | . . . . . . . Ram 9 | . . . . . . 9 Kick . | . . . . . . . Crush . | . . . . . . . Escape Stasis . | . . . . . . . Rewire . | . . . . . . . Trap . | . . . . . . . Miscellaneous . | . . . . . . . Route ------- -11/Scrapyard -10/Materials -9/Materials -8/Materials -7/Factory -7/Storage -6/Factory History --------- Turn | Location | Event 10 | -11/Scrapyard | Discovered new exit (range 14) 67 | -11/Scrapyard | Entered Materials 306 | -10/Materials | Build established: Mutant 525 | -10/Materials | Discovered new exit (range 16) 602 | -10/Materials | Entered another Materials area 602 | -9/Materials | Evolved 2 slots: Propulsion x2 805 | -9/Materials | Discovered new exit (range 16) 810 | -9/Materials | Entered another Materials area 810 | -8/Materials | Evolved 2 slots: Propulsion x1, Utility x1 902 | -8/Materials | Build established: Scavenger-Sprinter 1029 | -8/Materials | Discovered new exit (range 16) 1034 | -8/Materials | Entered Factory 1034 | -7/Factory | Evolved 2 slots: Power x1, Weapon x1 1069 | -7/Factory | Discovered new exit (range 5) 1084 | -7/Factory | Entered Storage 1203 | -7/Storage | Discovered new exit (range 15) 1208 | -7/Storage | Entered Factory 1208 | -6/Factory | Evolved 2 slots: Propulsion x1, Utility x1 1232 | -6/Factory | Lost 3 parts (1p1n1w) 1324 | -6/Factory | Core integrity fell below 50% 1325 | -6/Factory | Lost 4 parts (1p3n) 1366 | -6/Factory | Core integrity fell below 20% 1371 | -6/Factory | Destroyed by Y-54 Guardian with Gatling Laser Last Messages --------------- 01348_ Slammed into O-16 Technician. 01348_ Destabilizing: System corrupted (+2). 01358_ Penetrated by Slug. 01358_ TF Node disabled. 01358_ Imp. Sensor Array tumbles out of TF Node. 01358_ Imp. Signal Interpreter tumbles out of TF Node. 01359_ Slammed into H-66 Slayer. 01359_ H-66 Slayer knocked back. 01359_ Destabilizing: System corrupted (+2). 01360_ Slammed into H-66 Slayer. 01362_ Penetrated by Slug. 01362_ Slug penetrates Wall. 01362_ Slammed into H-66 Slayer. 01362_ Destabilizing: System corrupted (+2). 01363_ Slammed into H-66 Slayer. 01364_ Slammed into Y-54 Guardian. 01367_ System corrupted: Matter fused (-7). 01368_ Slug penetrates Wall. 01368_ Slug penetrates Y-54 Guardian. Map ----- +----------------------------------------------------+ | ?? ?# ## #????????# #???????? | | ??[ ?# ########## #???????? | | ? ??# ! #???????? | | ? ??# ^ #???????? | | ?#####???# #???????? | | ?????????# ^ ########## #???????? | | ?????????######## #????????# #???????? | | ????????????????### ###????????#########???????? | | ???????????######## #??????????????????????????? | | ???????????# # #??????????????????????????? | | ???????????# # #?? ??????????????????????? | | ???????????# """ # #?? "?????????????????????? | | ???????????# """ # #?? "?????????????????????? | | ???????????# """ # #?? "?????????????????????? | | ############ / #?? ????#????????????????? | | # "" # #?? """ #????????????????? | | # "" # #?? """ #????????????????? | | """"""""" # T" # #?# """ #????????????????? | | # "" # #?# #????????????????? | | """"""""" # "" # #?# ?????????????????? | | + # #?# = ???????????????????? | | """"""""" ######## ### ?????????????????????? | | #?????# ##/##############?????????? | | """"""""" #?#####Yg o uk k A ????????? | | #?#h Y k ????????? | | """"""""" #?# ### @ ????????? | | #?# #?# ##/########???????????????? | | ###+########?# #?####### ??????????????????????? | | ??# #????????# #???????? "??????????????????????? | | ??# #????????# #???????# ""?????????????????????? | | ### #????????# #??###### ""?????????????????????? | | #????????# #?? #! """????????????????????? | | #???????## ## """ # ?????????????????????? | | ######### # """ # "??????????????????????? | | + """ # "??????????????????????? | | ############# !!# # "??????????????????????? | | ????????????##### #= ???????????????????????? | | ??????????????????###### ???????????????????????? | | ???????????????????????? ???????????????????????? | | ####????????????????????##???????????????????????? | | #?????????????????????????????????????????????? | | ""#?????????????????????????????????????????????? | | T"#?????????????????????????????????????????????? | | ""#?????????????????????????????????????????????? | | #?????????????????????????????????????????????? | | #?????????????????????????????????????????????? | | "" #?????????????????????????????????????????????? | | "" #?????????????????????????????????????????????? | | "" #?????????????????????????????????????????????? | | #?????????????????????????????????????????????? | +----------------------------------------------------+ Best States ------------- Heat Dissipation 59 Energy Generation 19 Energy Capacity 310 Matter Stores 300 Matter Capacity 300 Sight Range 16 Terrain Scan Density 10 Additional Mass Support 6 Evasion (%) 64 Recoil Reduction 2 Item Schematics ----------------- None Robot Schematics ------------------ None Fabricated ------------ Nothing Repaired ---------- Nothing Studied --------- None Alien Tech Used ----------------- None Achievements -------------- Everything Is Under Control Challenges ------------ None Game ------ Seed GodPlexusWheel Manual? 0 Play Time 00:25:51 Cumulative 14.0 hours Start 2026.02.28 @ 10:24:29 End 2026.03.01 @ 02:17:41 Sessions 3 Manual Loads 0 Difficulty Rogue Special Mode None Game No. 23 Rogue 23 Adventurer 0 Explorer 0 Win Type - Total 0 Types 0/0/0/0/0/0/0/0/0/0 Lore% 6 Gallery% 19 Achievement% 14 Wizard Run 0 Options --------- Layout 1 ASCII 0 Keyboard 0 Movement Numpad Keybinds 0 Fullscreen 2 Font 24/Smallcaps Map View 50x35 Zoom Use 0% Tactical HUD 1 Map Filters NONE Filters NONE Steam 1 RUN: 556b5262-a717-4b4d-8636-be2af4f22cf4